bitfinex-derivatives/quotes_ETHF0:USTF0_20251213
["timestamp","ask_amount","ask_price","bid_price","bid_amount"]
[1765600621078,1.424,3088.4,3088.3,0.91711925]
[1765600621280,1.424,3088.4,3088.3,0.16551925]
[1765600621981,1.424,3088.4,3088.3,0.91711925]
[1765600622387,1.424,3088.4,3088.3,1.67801925]
[1765600622589,0.7175,3088.4,3088.3,1.67801925]
[1765600622887,1.43121644,3088.7,3088.6,1.5125]
[1765600629388,1.43121644,3088.7,3088.6,0.7516]
[1765600629889,1.424,3088.6,3088.5,1.1923]
[1765600630091,1.424,3088.6,3088.5,1.9532]
[1765600631385,1.424,3088.6,3088.5,0.4407]
[1765600631592,1.424,3088.4,3088.3,1.67801925]
[1765600632685,1.424,3088.4,3088.3,0.91711925]
[1765600633285,1.424,3088.4,3088.3,1.67801925]
[1765600641500,1.424,3088.4,3088.3,0.91711925]
[1765600641799,1.424,3088.4,3088.3,1.64231925]
[1765600642503,1.424,3088.4,3088.3,0.16551925]
[1765600643005,1.424,3088.4,3088.3,0.93551925]
[1765600644402,1.424,3088.4,3088.3,0.16551925]
[1765600650015,1.424,3088.4,3088.3,0.93551925]
[1765600650209,1.424,3088.4,3088.3,1.69831925]
[1765600652115,0.7175,3088.4,3088.3,1.69831925]
[1765600652720,1.4546,3088.4,3088.3,1.69831925]
[1765600653103,1.4546,3088.4,3088.3,0.16551925]
[1765600655115,1.4546,3088.4,3088.3,0.93551925]
[1765600655417,1.4546,3088.4,3088.3,1.69831925]
[1765600655619,1.4546,3088.4,3088.3,0.16551925]
[1765600656222,1.4546,3088.4,3088.3,0.93551925]
[1765600657811,1.4546,3088.4,3088.3,1.69831925]
[1765600658925,1.4546,3088.4,3088.3,0.93551925]
[1765600660026,1.4546,3088.4,3088.3,0.16551925]
[1765600661824,3.866,3088.6,3088.5,1.9969]
[1765600662028,0.00721644,3088.7,3088.6,1.5328]
[1765600662322,3.9501,3089.3,3089.2,1.5328]
[1765600662629,3.2078,3089.3,3089.2,1.5328]
[1765600663126,3.21037692,3089.3,3089.2,1.5328]
[1765600663327,3.21037692,3089.3,3089.2,2.2247425]
[1765600663720,3.21037692,3089.3,3089.2,1.5328]
[1765600665329,0.00257692,3089.3,3089.2,1.5328]
[1765600667624,0.74487692,3089.3,3089.2,1.5328]
[1765600668330,0.00257692,3089.3,3089.2,1.5328]
[1765600672035,0.00257692,3089.3,3089.2,2.224085]
[1765600674028,0.00486057,3089.6,3089.5,1.9152]
[1765600674227,3.2078,3090.1,3090.0,1.9152]
[1765600674532,4.7147,3090.1,3090.0,1.9152]
[1765600674737,3.9507,3090.1,3090.0,1.9152]
[1765600674935,3.95308201,3090.1,3090.0,1.9152]
[1765600675336,3.21018201,3090.1,3090.0,1.9152]
[1765600676036,0.00238201,3090.1,3090.0,1.9152]
[1765600679133,1.5069,3089.8,3089.7,0.00486057]
[1765600679339,2.198185,3089.8,3089.7,0.00486057]
[1765600680238,1.5069,3089.8,3089.7,0.00486057]
[1765600681036,3.21018201,3090.1,3089.7,2.18554557]
[1765600681237,4.71708201,3090.1,3090.0,1.1683]
[1765600682937,4.71708201,3090.1,3090.0,1.9152]
[1765600688049,3.95308201,3090.1,3090.0,1.9152]
[1765600688849,4.71708201,3090.1,3090.0,1.9152]
[1765600691239,0.4006,3091.5,3090.5,0.16177]
[1765600691443,1.5069,3090.9,3090.8,1.4894]
[1765600692251,1.51006734,3090.9,3090.8,1.49213652]
[1765600692952,0.00316734,3090.9,3090.8,1.49213652]
[1765600693461,0.74606734,3090.9,3090.8,1.49213652]
[1765600694254,0.74606734,3090.9,3090.8,2.18323281]
[1765600695353,1.51006734,3090.9,3090.8,2.18323281]
[1765600698363,0.74606734,3090.9,3090.8,2.18323281]
[1765600699059,0.00316734,3090.9,3090.8,2.18323281]
[1765600699257,0.00316734,3090.9,3090.8,5.39103281]
[1765600700458,0.00316734,3090.9,3090.8,5.64959523]
[1765600700663,0.00316734,3090.9,3090.8,5.81134523]
[1765600702759,0.00316734,3090.9,3090.8,5.55278281]
[1765600713367,0.00316734,3090.9,3090.8,2.34498281]
[1765600713759,0.00316734,3090.9,3090.8,5.55278281]
[1765600719367,0.00316734,3090.9,3090.8,5.55217522]
[1765600726083,0.00316734,3090.9,3090.8,2.34437522]
[1765600726377,0.00316734,3090.9,3090.8,5.55217522]
[1765600729583,0.00485255,3091.2,3091.1,1.69534]
[1765600729776,0.00485255,3091.2,3091.1,2.3858287]
[1765600730577,0.00896782,3091.2,3091.1,2.3858287]
[1765600733881,0.00896782,3091.2,3091.1,1.69534]
[1765600740783,0.00896782,3091.2,3091.1,2.3857989]
[1765600745592,0.76526782,3091.2,3091.1,2.3857989]
[1765600745795,1.47486782,3091.2,3091.1,1.5336]
[1765600746000,1.47486782,3091.2,3091.1,0.7762]
[1765600746199,1.47486782,3091.2,3091.1,1.5267]
[1765600746496,0.76526782,3091.2,3091.1,1.5267]
[1765600747397,1.47486782,3091.2,3091.1,1.5267]
[1765600747697,0.76526782,3091.2,3091.1,1.5267]
[1765600749995,0.00896782,3091.2,3091.1,1.5267]
[1765600750402,0.76526782,3091.2,3091.1,1.5267]
[1765600782633,0.76526782,3091.2,3091.0,0.61974]
[1765600782634,1.4492,3091.1,3091.0,2.09684]
[1765600782942,0.7424,3091.1,3091.0,2.09684]
[1765600784340,1.4492,3091.1,3091.0,2.09684]
[1765600785041,0.7424,3091.1,3091.0,2.09684]
[1765600791746,0.75136782,3091.2,3091.1,1.4393]
[1765600792946,1.47416782,3091.2,3091.1,1.4393]
[1765600793450,0.75136782,3091.2,3091.1,1.4393]
[1765600820368,1.5316,3090.9,3090.8,0.00273652]
[1765600820577,2.22222682,3090.9,3090.8,0.00273652]
[1765600821662,0.7735,3090.9,3090.8,2.11556334]
[1765600821860,2.40636782,3091.2,3091.1,1.4594]
[1765600822064,3.41040082,3091.2,3091.1,1.4594]
[1765600823367,3.41040082,3091.2,3091.1,0.7117]
[1765600823772,3.41040082,3091.2,3091.1,1.4594]
[1765600824378,2.40636782,3091.2,3091.1,1.4594]
[1765600824580,2.40636782,3091.2,3091.1,0.7117]
[1765600824781,2.40636782,3091.2,3091.1,1.4594]
[1765600828289,1.52036782,3091.2,3091.1,1.4594]
[1765600829682,0.78246782,3091.2,3091.1,1.4594]
[1765600830178,1.52036782,3091.2,3091.1,1.4594]
[1765600830790,0.00896782,3091.2,3091.1,1.4594]
[1765600830995,0.00896782,3091.2,3091.1,4.6672]
[1765600841193,0.71716782,3091.2,3091.1,5.35782682]
[1765600841691,0.00896782,3091.2,3091.1,5.35782682]
[1765600844793,0.00896782,3091.2,3091.1,1.4594]
[1765600844993,0.00896782,3091.2,3091.1,2.15002682]
[1765600848404,0.00896782,3091.2,3091.1,2.14985266]
[1765600854708,0.00896782,3091.2,3091.1,1.4594]
[1765600855006,0.75056782,3091.2,3091.1,2.14985266]
[1765600855409,1.49306782,3091.2,3091.1,1.4594]
[1765600856709,1.49306782,3091.2,3091.1,0.7117]
[1765600857107,1.49306782,3091.2,3091.1,1.4465]
[1765600860613,1.4841,3091.1,3091.0,0.59364]
[1765600860808,1.4841,3091.1,3091.0,1.33164]
[1765600861309,1.4841,3091.1,3091.0,2.06644]
[1765600867011,1.4841,3091.1,3091.0,1.33164]
[1765600869015,1.4841,3090.9,3090.8,0.00273652]
[1765600869213,4.6919,3090.9,3090.8,0.00273652]
[1765600870208,4.6919,3090.9,3090.3,3.2078]
[1765600870209,1.4841,3090.4,3090.3,4.6806]
[1765600870410,1.4841,3090.4,3090.3,1.4728]
[1765600871125,1.4841,3090.4,3090.3,1.47543214]
[1765600876119,1.4841,3090.4,3090.3,0.74063214]
[1765600876823,1.4841,3090.4,3090.3,0.00263214]
[1765600877122,1.4841,3090.4,3090.3,1.47543214]
[1765600877318,1.4841,3090.4,3090.3,0.74063214]
[1765600878813,4.6919,3090.4,3090.3,0.74063214]
[1765600879016,4.6919,3090.4,3090.3,0.00263214]
[1765600880724,1.4841,3089.8,3089.7,1.47766057]
[1765600881625,1.4841,3089.8,3089.7,1.48124896]
[1765600884127,1.4841,3089.8,3089.7,0.74644896]
[1765600884928,3.2078,3090.0,3089.9,1.4855]
[1765600885125,4.0938,3090.4,3090.3,1.4855]
[1765600885320,4.867,3090.4,3090.3,1.4855]
[1765600885723,5.5968,3090.4,3090.3,1.4855]
[1765600891530,1.503,3090.1,3090.0,1.9277]
[1765600892229,1.503,3089.8,3089.7,1.65575896]
[1765600893234,0.7732,3089.8,3089.7,1.65575896]
[1765600894434,1.503,3089.8,3089.7,1.65575896]
[1765600895243,3.2078,3090.0,3089.9,1.4855]
[1765600896840,3.2078,3090.0,3089.8,0.69119158]
[1765600896841,4.0938,3090.4,3090.3,1.4855]
[1765600897237,4.867,3090.4,3090.3,1.4855]
[1765600898442,5.5968,3090.4,3090.3,1.4855]
[1765600901249,2.389,3090.4,3090.3,1.4855]
[1765600901442,5.5968,3090.4,3090.3,1.4855]
[1765600901942,4.7108,3090.4,3090.3,0.7642]
[1765600902145,0.7732,3090.1,3090.0,1.9277]
[1765600902342,1.503,3090.1,3090.0,1.9277]
[1765600903144,0.7298,3090.1,3089.9,0.1618]
[1765600903449,1.503,3090.0,3089.9,0.926]
[1765600903635,1.503,3090.0,3089.9,1.6473]
[1765600903840,0.7732,3090.0,3089.9,1.6473]
[1765600904042,1.503,3090.0,3089.9,1.6473]
[1765600904241,0.7732,3090.0,3089.9,1.6473]
[1765600905550,3.981,3090.4,3090.3,1.4855]
[1765600905753,4.7108,3090.4,3090.3,1.4855]
[1765600906951,4.7108,3090.4,3090.3,0.7642]
[1765600910255,1.503,3090.1,3090.0,2.08949]
[1765600914353,1.503,3090.1,3090.0,1.36819]
[1765600914753,1.503,3090.1,3090.0,2.13209]
[1765600916254,0.7732,3090.1,3090.0,2.13209]
[1765600916655,1.4787,3090.1,3090.0,2.13209]
[1765600917553,0.7732,3090.1,3090.0,2.13209]
[1765600920355,1.4787,3090.1,3090.0,2.13209]
[1765600920555,1.4787,3090.1,3090.0,0.16179]
[1765600926256,1.4787,3090.1,3090.0,1.36809]
[1765600927162,0.7732,3090.1,3090.0,2.13199]
[1765600927665,1.4787,3090.1,3090.0,2.13199]
[1765600928463,1.4787,3090.1,3090.0,1.36809]
[1765600928669,1.4787,3090.1,3090.0,0.61609]
[1765600930667,4.6865,3090.1,3090.0,0.61609]
[1765600931059,1.4787,3090.1,3090.0,0.61609]
[1765600931259,4.6865,3090.1,3090.0,0.61609]
[1765600931460,4.6865,3090.1,3090.0,0.16179]
[1765600933067,4.6865,3090.1,3090.0,0.91379]
[1765600934470,4.6865,3090.1,3090.0,2.13199]
[1765600937170,3.981,3090.1,3090.0,2.13199]
[1765600945476,3.2078,3090.1,3090.0,2.82299024]
[1765600946079,3.2078,3090.1,3090.0,2.82296758]
[1765600948567,0.886,3090.5,3090.0,2.82296758]
[1765600948773,3.9632,3090.4,3090.3,0.7473]
[1765600949476,4.701,3090.4,3090.3,0.7473]
[1765600950880,1.4932,3090.4,3090.3,0.7473]
[1765600951074,4.701,3090.4,3090.3,1.4958]
[1765600951275,0.7554,3090.4,3090.3,1.4958]
[1765600951472,3.89877758,3090.8,3090.3,1.4958]
[1765600951871,3.2078,3090.8,3090.3,1.65758]
[1765600952176,4.701,3090.8,3090.7,0.7473]
[1765600953078,1.4932,3090.6,3090.5,1.9483]
[1765600955786,0.7554,3090.6,3090.5,1.9483]
[1765600957390,1.4932,3090.6,3090.5,1.9483]
[1765600957687,1.4932,3090.6,3090.5,1.1998]
[1765600960981,1.4932,3090.6,3090.5,1.9483]
[1765600963192,0.7554,3090.6,3090.5,1.9483]
[1765600963394,0.7554,3090.6,3090.5,2.11007]
[1765600964694,4.701,3090.8,3090.7,1.4958]
[1765600964902,3.9632,3090.8,3090.7,2.18677758]
[1765600967498,0.7554,3090.8,3090.7,2.18677758]
[1765600968400,3.9632,3091.0,3090.9,1.4958]
[1765600968596,4.701,3091.0,3090.9,1.4958]
[1765600971504,1.4932,3091.0,3090.9,1.4958]
[1765600971805,4.701,3091.0,3090.9,1.4958]
[1765600975702,4.701,3091.0,3090.9,0.7473]
[1765600976609,1.47,3090.8,3090.7,2.40303758]
[1765600977409,1.47,3090.8,3090.7,1.71206]
[1765600995633,4.6778,3091.0,3090.9,1.5503]
[1765601000935,3.9209,3091.0,3090.9,1.5503]
[1765601001138,4.6951,3091.0,3090.9,1.5503]
[1765601004046,4.6951,3091.0,3090.9,0.7747]
[1765601004334,1.4715,3090.8,3090.7,1.60536]
[1765601013247,1.4715,3090.8,3090.7,0.16176]
[1765601018451,1.4715,3090.8,3090.7,0.90016]
[1765601019550,1.4715,3090.8,3090.7,1.60536]
[1765601025854,1.4715,3090.8,3090.7,0.90016]
[1765601027360,1.4715,3090.8,3090.7,1.60536]
[1765601028259,1.4715,3090.8,3090.1,0.6907425]
[1765601028260,1.4715,3090.2,3090.1,4.6514]
[1765601028662,0.7352,3090.2,3090.1,4.81319]
[1765601028867,3.8985425,3090.8,3090.1,4.81319]
[1765601029659,0.7352,3090.2,3090.1,4.81319]
[1765601032464,3.8985425,3090.8,3090.1,4.81319]
[1765601039768,3.2078,3090.8,3090.1,4.81319]
[1765601039967,0.7676,3090.4,3090.3,2.16925724]
[1765601042675,4.7171,3090.8,3090.7,0.7451]
[1765601042874,1.5093,3090.6,3090.5,1.9289]
[1765601043276,1.5093,3090.6,3090.5,1.1956]
[1765601044176,1.5093,3090.6,3090.5,1.9289]
[1765601047377,0.7676,3090.8,3090.7,1.4784]
[1765601047970,1.5093,3090.8,3090.7,1.4784]
[1765601065500,0.7676,3090.8,3090.7,1.4784]
[1765601066998,1.474,3090.8,3090.7,1.4784]
[1765601069704,0.7676,3090.8,3090.7,1.4784]
[1765601072406,1.474,3090.8,3090.7,1.4784]
[1765601072909,5.39197235,3091.2,3090.5,1.30317453]
[1765601075910,0.69074405,3091.1,3090.5,1.30301405]
[1765601076211,2.17504405,3091.1,3091.0,0.7743]
[1765601076913,2.17504405,3091.1,3090.5,0.61227]
[1765601077513,2.17504405,3091.1,3091.0,0.7743]
[1765601077715,2.17504405,3091.1,3090.5,0.61227]
[1765601078807,0.7779,3090.6,3090.5,2.09427]
[1765601079013,1.4843,3090.6,3090.5,2.09427]
[1765601083516,1.4843,3090.6,3090.5,1.38657]
[1765601084015,1.4843,3090.6,3090.5,2.09427]
[1765601108335,0.7779,3090.6,3090.5,2.09427]
[1765601108536,1.4939,3090.6,3090.5,2.09427]
[1765601111436,1.4939,3090.6,3090.5,0.61227]
[1765601111638,1.4939,3090.6,3090.5,0.16177]
[1765601114035,1.4939,3090.6,3090.5,0.87957]
[1765601117341,1.4939,3090.6,3090.5,2.04097]
[1765601118834,0.7779,3090.6,3090.5,2.04097]
[1765601123542,3.9714,3090.7,3090.6,1.4782]
[1765601124143,4.7143,3090.7,3090.6,1.4782]
[1765601127446,3.9714,3090.7,3090.6,1.4782]
[1765601128546,4.6834,3090.7,3090.6,1.4782]
[1765601149972,1.4756,3090.7,3090.6,1.4782]
[1765601154076,0.7636,3090.7,3090.6,1.4782]
[1765601154476,1.5153,3090.7,3090.6,1.4782]
[1765601161876,1.5153,3090.7,3090.6,0.7455]
[1765601162580,1.5252,3090.6,3090.5,1.34277]
[1765601163873,2.21616319,3090.6,3090.5,1.34277]
[1765601164782,2.21616319,3090.6,3090.5,0.59607]
[1765601165081,1.5252,3090.6,3090.5,2.11497]
[1765601174590,4.733,3090.8,3090.7,1.5053]
[1765601175085,4.733,3090.8,3090.7,0.7467]
[1765601176400,4.733,3090.8,3090.7,1.5053]
[1765601177284,3.21676782,3091.2,3090.7,2.19618889]
[1765601177487,4.74196782,3091.2,3090.7,0.69088889]
[1765601177685,1.5252,3090.6,3090.5,4.56417]
[1765601177885,1.5252,3090.6,3090.5,5.32277]
[1765601178390,0.7735,3090.6,3090.5,5.32277]
[1765601178782,2.21608889,3090.9,3090.8,0.7467]
[1765601181199,1.5252,3090.9,3090.8,0.7467]
[1765601181491,1.5252,3090.9,3090.8,1.5053]
[1765601188492,0.7735,3090.9,3090.8,1.5053]
[1765601188895,3.98186782,3091.2,3091.1,1.4946]
[1765601189395,4.76056782,3091.2,3091.1,1.4946]
[1765601193900,1.55276782,3091.2,3091.1,1.4946]
[1765601195199,0.77406782,3091.2,3091.1,1.4946]
[1765601196099,1.55276782,3091.2,3091.1,1.4946]
[1765601200005,1.55276782,3091.2,3091.1,0.7584]
[1765601200205,1.55276782,3091.2,3091.1,1.4946]
[1765601209919,0.77406782,3091.2,3091.1,1.4946]
[1765601210517,1.55276782,3091.2,3091.1,1.4946]
[1765601213011,1.55276782,3091.2,3091.1,0.7584]
[1765601213212,1.4716,3091.1,3091.0,0.4348]
[1765601213412,1.4716,3091.0,3090.9,0.91855]
[1765601213613,2.16220219,3091.0,3090.9,0.91855]
[1765601216024,2.16220219,3091.0,3090.9,1.62495]
[1765601216325,1.4716,3091.0,3090.9,1.62495]
[1765601216827,0.714,3091.0,3090.9,1.62495]
[1765601217125,1.48056782,3091.2,3091.1,1.4632]
[1765601217326,0.00896782,3091.2,3091.1,1.4632]
[1765601218228,0.00896782,3091.2,3091.1,2.15380219]
[1765601220531,0.00896782,3091.2,3091.1,1.62494]
[1765601221435,0.72296782,3091.2,3091.1,1.62494]
[1765601221935,0.00896782,3091.2,3091.1,1.62494]
[1765601222328,0.00896782,3091.2,3091.1,2.31554219]
[1765601222729,0.00896782,3091.2,3091.1,5.52334219]
[1765601223936,0.00896782,3091.2,3091.1,4.83274]
[1765601265773,0.72976782,3091.2,3091.1,4.83274]
[1765601265967,1.49236782,3091.2,3091.1,4.83274]
[1765601267274,0.72976782,3091.2,3091.1,4.83274]
[1765601267863,1.49236782,3091.2,3091.1,4.83274]
[1765601268069,1.49236782,3091.2,3091.1,4.12634]
[1765601268370,1.49236782,3091.2,3091.1,4.87534]
[1765601270366,0.72976782,3091.2,3091.1,4.87534]
[1765601270569,0.00896782,3091.2,3091.1,4.87534]
[1765601276778,1.48716782,3091.2,3091.1,4.87534]
[1765601277680,0.76006782,3091.2,3091.1,4.87534]
[1765601277882,1.48716782,3091.2,3091.1,4.87534]
[1765601282985,0.76006782,3091.2,3091.1,4.87534]
[1765601294404,1.45065468,3091.2,3091.1,4.87534]
[1765601294596,2.17775468,3091.2,3091.1,4.87534]
[1765601302010,1.48716782,3091.2,3091.1,4.87534]
[1765601302205,0.76006782,3091.2,3091.1,4.87534]
[1765601304607,1.48866782,3091.2,3091.1,4.87534]
[1765601305405,1.48866782,3091.2,3091.1,3.36954]
[1765601305606,1.48866782,3091.2,3091.1,4.86984]
[1765601315013,0.76006782,3091.2,3091.1,4.86984]
[1765601316618,0.00896782,3091.2,3091.1,4.86984]
[1765601321114,0.00896782,3091.2,3091.1,1.66204]
[1765601358261,0.78396782,3091.2,3091.1,1.66204]
[1765601361362,0.00896782,3091.2,3091.1,1.66204]
[1765601408884,1.43120548,3091.2,3091.1,1.66204]
[1765601409089,2.14930548,3091.2,3091.1,1.66204]
[1765601409289,1.43120548,3091.2,3091.1,1.66204]
[1765601409591,2.14930548,3091.2,3091.1,1.66204]
[1765601409790,1.43120548,3091.2,3091.1,1.66204]
[1765601410186,2.14930548,3091.2,3091.1,1.66204]
[1765601410394,1.43120548,3091.2,3091.1,1.66204]
[1765601411398,2.14930548,3091.2,3091.1,1.66204]
[1765601412698,1.43120548,3091.2,3091.1,1.66204]
[1765601415801,0.69950548,3091.2,3091.1,1.66204]
[1765601419205,0.00896782,3091.2,3091.1,1.66204]
[1765601462332,1.51326782,3091.2,3091.1,0.16174]
[1765601462530,1.51326782,3091.2,3091.1,1.67064]
[1765601464440,0.77766782,3091.2,3091.1,1.67064]
[1765601465438,1.51326782,3091.2,3091.1,1.67064]
[1765601477142,1.43519159,3091.2,3091.0,0.4614]
[1765601477347,1.5043,3090.6,3090.5,1.2111]
[1765601477951,1.5043,3090.6,3090.5,1.9568]
[1765601480549,0.7687,3090.6,3090.5,1.9568]
[1765601486667,1.5154,3090.6,3090.5,1.9568]
[1765601486867,1.5154,3090.6,3090.5,1.2111]
[1765601487067,1.5154,3090.6,3090.5,1.9908]
[1765601487973,0.7687,3090.6,3090.5,1.9908]
[1765601488666,0.7516,3090.8,3090.7,1.5406]
[1765601488967,4.6944,3091.1,3091.0,1.9803]
[1765601491778,4.6944,3091.1,3091.0,1.2006]
[1765601494470,4.6944,3091.1,3091.0,0.4397]
[1765601494672,1.4866,3090.6,3090.5,2.15027]
[1765601494873,0.7516,3090.6,3090.5,2.15027]
[1765601495273,0.69062377,3091.0,3090.5,2.15027]
[1765601495787,0.69086326,3091.0,3090.5,2.15027]
[1765601495987,0.7516,3090.6,3090.5,2.15027]
[1765601503092,1.4866,3090.6,3090.5,0.60967]
[1765601503288,1.4866,3090.6,3090.5,1.37057]
[1765601503588,1.4866,3090.6,3090.5,2.15027]
[1765601504285,1.4866,3090.6,3090.5,0.16177]
[1765601504486,1.4866,3090.4,3090.3,4.7484]
[1765601505285,1.4866,3090.4,3090.3,1.5406]
[1765601508391,0.7516,3090.4,3090.3,1.5406]
[1765601514899,1.4921,3090.4,3090.3,1.5406]
[1765601518999,0.7516,3090.4,3090.3,1.5406]
[1765601519399,1.4921,3090.4,3090.3,1.5406]
[1765601520500,0.7516,3090.4,3090.3,1.5406]
[1765601522501,4.6638,3090.6,3090.5,1.9811]
[1765601522902,3.2078,3090.6,3090.5,1.9811]
[1765601523598,3.9233,3090.6,3090.5,1.9811]
[1765601528206,0.7155,3090.6,3090.5,1.9811]
[1765601530206,3.2078,3090.7,3090.6,1.5227]
[1765601530702,3.9233,3090.7,3090.6,1.5227]
[1765601531211,3.2078,3090.7,3090.6,1.5227]
[1765601536114,3.9233,3090.7,3090.6,1.5227]
[1765601537313,0.7155,3090.7,3090.6,1.5227]
[1765601557729,3.963,3090.9,3090.8,1.4798]
[1765601558235,4.7064,3090.9,3090.8,1.4798]
[1765601563640,3.963,3090.9,3090.8,1.4798]
[1765601570241,4.7064,3090.9,3090.8,1.4798]
[1765601572442,3.963,3090.9,3090.8,1.4798]
[1765601573246,3.2078,3090.9,3090.8,1.64155]
[1765601573646,0.71896782,3091.2,3091.1,1.4652]
[1765601573947,1.42216782,3091.2,3091.1,1.4652]
[1765601584053,1.42216782,3091.2,3091.1,0.7054]
[1765601585353,1.42216782,3091.2,3091.0,0.4495]
[1765601585354,1.4132,3091.1,3091.0,1.1549]
[1765601586755,1.4132,3091.1,3091.0,1.9147]
[1765601597466,0.71,3091.1,3091.0,1.9147]
[1765601603970,0.76236782,3091.2,3091.1,1.4825]
[1765601605163,0.00896782,3091.2,3091.1,1.4825]
[1765601609876,0.71126782,3091.2,3091.1,1.4825]
[1765601610272,1.42786782,3091.2,3091.1,1.4825]
[1765601610774,1.42786782,3091.2,3091.1,0.7037]
[1765601611170,1.42786782,3091.2,3091.1,1.4549]
[1765601617474,0.71126782,3091.2,3091.1,1.4549]
[1765601618180,1.42786782,3091.2,3091.1,1.4549]
[1765601619380,1.4189,3091.1,3091.0,0.4495]
[1765601619582,1.4189,3091.1,3091.0,1.2035]
[1765601619880,1.4189,3091.1,3091.0,1.9547]
[1765601620381,0.7023,3091.1,3091.0,1.9547]
[1765601627889,0.00896782,3091.2,3091.1,1.5052]
[1765601628491,0.71126782,3091.2,3091.1,1.5052]
[1765601629092,1.42786782,3091.2,3091.1,1.5052]
[1765601646607,0.71126782,3091.2,3091.1,1.5052]
[1765601655210,1.44726782,3091.2,3091.1,1.5052]
[1765601655412,0.71126782,3091.2,3091.1,1.5052]
[1765601655714,0.00896782,3091.2,3091.1,1.5052]
[1765601658118,0.00896782,3091.2,3091.1,2.19567639]
[1765601672830,0.00896782,3091.2,3091.1,2.35741639]
[1765601680735,0.00896782,3091.2,3091.1,1.66694]
[1765601682238,0.00896782,3091.2,3091.1,2.35741639]
[1765601685438,0.00896782,3091.2,3091.1,1.66694]
[1765601685640,0.00896782,3091.2,3091.1,2.35741639]
[1765601690242,0.00896782,3091.2,3091.1,2.35737906]
[1765601696933,1.46886782,3091.2,3091.1,2.35737906]
[1765601697341,0.76036782,3091.2,3091.1,2.35737906]
[1765601699842,1.46886782,3091.2,3091.1,1.66694]
[1765601701840,1.4599,3090.8,3090.7,2.19723906]
[1765601702342,0.7514,3090.8,3090.7,2.19723906]
[1765601702838,1.4599,3090.8,3090.7,1.5068]
[1765601703038,3.9163,3090.8,3090.5,0.62017]
[1765601703240,0.7514,3090.2,3090.1,2.19723906]
[1765601703441,3.2078,3090.8,3090.1,2.19723906]
[1765601703642,3.89823906,3090.8,3090.1,2.19723906]
[1765601705746,0.7514,3090.2,3090.1,1.5068]
[1765601705946,1.4599,3090.2,3090.1,1.5068]
[1765601707132,0.7514,3090.2,3090.1,1.5068]
[1765601707336,1.4599,3090.2,3090.1,0.7599]
[1765601707745,1.4599,3090.2,3090.1,1.5068]
[1765601712950,1.4599,3090.2,3090.1,0.7599]
[1765601713551,1.4599,3090.1,3090.0,0.61609]
[1765601713750,1.4599,3090.1,3090.0,0.16179]
[1765601714151,1.4599,3090.1,3090.0,0.92169]
[1765601714353,1.4599,3090.1,3090.0,1.36819]
[1765601714551,1.4599,3090.1,3090.0,2.11509]
[1765601718856,1.4599,3090.1,3090.0,1.36819]
[1765601719559,1.4599,3090.1,3090.0,1.2064]
[1765601719858,0.7514,3089.8,3089.7,1.51524896]
[1765601720559,1.4599,3089.8,3089.7,1.51524896]
[1765601725061,0.7514,3089.8,3089.7,1.51524896]
[1765601729363,3.2078,3090.2,3089.7,1.51524896]
[1765601730864,0.691248,3090.3,3089.7,1.51524896]
[1765601731061,3.2078,3090.2,3089.7,1.51524896]
[1765601732670,0.7526,3089.8,3089.7,1.51524896]
[1765601734667,1.4948,3089.8,3089.7,1.51524896]
[1765601734968,0.7526,3089.8,3089.7,1.51524896]
[1765601738182,4.7026,3090.2,3090.1,0.7493]
[1765601739975,4.7026,3090.2,3090.1,1.4987]
[1765601742478,4.7026,3090.2,3090.1,0.7493]
[1765601750381,1.4948,3090.1,3090.0,1.2121]
[1765601750686,1.4948,3090.1,3090.0,1.9615]
[1765601769892,2.1859944,3090.1,3090.0,1.9615]
[1765601782793,3.2078,3090.3,3090.2,1.4784]
[1765601782998,3.9103,3090.3,3090.2,1.4784]
[1765601783802,4.6481,3090.3,3090.2,1.4784]
[1765601785092,5.3392944,3090.3,3090.2,1.4784]
[1765601787301,4.6481,3090.3,3090.2,1.4784]
[1765601795404,1.4403,3090.3,3090.2,1.4784]
[1765601811327,0.7025,3090.3,3090.2,1.4784]
[1765601812032,1.4596,3090.3,3090.2,1.4784]
[1765601819334,0.7025,3090.3,3090.2,1.4784]
[1765601823036,1.4773,3090.3,3090.2,1.4784]
[1765601827430,1.515,3090.2,3090.0,0.28466632]
[1765601827638,1.515,3089.8,3089.7,1.49634896]
[1765601828134,0.7402,3089.8,3089.7,1.49634896]
[1765601834040,3.948,3089.9,3089.8,1.4879]
[1765601834945,3.2078,3089.9,3089.8,1.4879]
[1765601835443,3.948,3089.9,3089.8,1.4879]
[1765601836745,0.7402,3089.9,3089.8,1.4879]
[1765601839745,1.515,3089.9,3089.8,1.4879]
[1765601840349,0.7402,3089.9,3089.8,1.4879]
[1765601846158,4.6855,3090.2,3090.1,0.7546]
[1765601849267,3.948,3090.2,3090.1,1.4987]
[1765601850463,4.6855,3090.2,3090.1,1.4987]
[1765601857777,1.4777,3090.2,3090.1,1.4987]
[1765601860375,1.4777,3090.2,3090.1,0.7546]
[1765601860576,1.4526,3090.1,3090.0,0.59189]
[1765601861077,1.4526,3090.1,3090.0,1.32729]
[1765601865178,1.4526,3090.1,3090.0,0.16179]
[1765601869184,1.4526,3090.1,3090.0,0.89719]
[1765601872383,1.4526,3090.1,3088.1,3.236]
[1765601872384,1.5235,3089.2,3089.1,3.2078]
[1765601872684,1.5235,3089.5,3089.4,1.543]
[1765601872883,5.72584538,3089.5,3089.4,1.543]
[1765601873085,4.7313,3089.5,3089.4,1.543]
[1765601873477,4.7313,3089.5,3089.4,1.54541232]
[1765601877588,4.7313,3089.5,3089.4,0.77351232]
[1765601881094,3.2078,3089.5,3089.4,1.54541232]
[1765601881594,3.9668,3089.5,3089.4,1.54541232]
[1765601882092,4.7313,3089.5,3089.4,1.54541232]